fUSD/lending_fUSD_20251221
["ID","MTS","AMOUNT","RATE_DAILY","PERIOD"]
[399418603,1766337042017,-500.0,0.00013699,2]
[399418604,1766337042027,-500.0,0.00013699,2]
[399418605,1766337042037,-500.0,0.00013699,2]
[399418606,1766337042046,-500.0,0.00013699,2]
[399418607,1766337042055,-500.0,0.00013699,2]
[399418608,1766337042065,-312.32495208,0.00013699,2]
[399418609,1766337042075,-500.0,0.00013699,2]
[399418610,1766337042085,-500.0,0.00013699,2]
[399418611,1766337042095,-500.0,0.00013699,2]
[399418612,1766337042104,-500.0,0.00013699,2]
[399418613,1766337042114,-500.0,0.00013699,2]
[399418614,1766337042123,-500.0,0.00013699,2]
[399418615,1766337042133,-500.0,0.00013699,2]
[399418616,1766337042143,-500.0,0.00013699,2]
[399418617,1766337042152,-547.09018035,0.00013699,2]
[399418618,1766337042161,-500.0,0.00013699,2]
[399418619,1766337042170,-1000.0,0.00013821,2]
[399418620,1766337042181,-1000.0,0.00013821,2]
[399418621,1766337042190,-1000.0,0.00013821,2]
[399418622,1766337042199,-550.17823057,0.00013821,2]
[399418623,1766337042209,-1000.0,0.00013821,2]
[399418624,1766337042221,-1000.0,0.00013821,2]
[399418625,1766337042231,-1000.0,0.00013821,2]
[399418626,1766337042240,-1000.0,0.00013821,2]
[399418627,1766337042250,-1000.0,0.00013821,2]
[399418628,1766337042259,-535.22474582,0.00013821,2]
[399418629,1766337042269,-1000.0,0.00013821,2]
[399418630,1766337042279,-1000.0,0.00013821,2]
[399418631,1766337042289,-1000.0,0.00013821,2]
[399418632,1766337042300,-1000.0,0.00013821,2]
[399418633,1766337042309,-1000.0,0.00013821,2]
[399418634,1766337042318,-1000.0,0.00013821,2]
[399418635,1766337042328,-235.55154497,0.00013821,2]
[399418636,1766337042338,-1000.0,0.00013821,2]
[399418637,1766337042347,-1000.0,0.00013821,2]
[399418638,1766337042356,-1000.0,0.00013821,2]
[399418639,1766337042366,-484.06013596,0.00013821,2]
[399418640,1766337042377,-1000.0,0.00013821,2]
[399418641,1766337042386,-1000.0,0.00013821,2]
[399418642,1766337042396,-1000.0,0.00013821,2]
[399418643,1766337042407,-1000.0,0.00013821,2]
[399418644,1766337042417,-1000.0,0.00013821,2]
[399418645,1766337042426,-1000.0,0.00013821,2]
[399418646,1766337042437,-453.53849539,0.00013821,2]
[399418647,1766337042447,-1000.0,0.00013821,2]
[399418648,1766337042457,-1000.0,0.00013821,2]
[399418649,1766337042467,-1000.0,0.00013821,2]
[399418650,1766337042476,-1000.0,0.00013821,2]
[399418651,1766337042485,-1000.0,0.00013821,2]
[399418652,1766337042494,-1000.0,0.00013821,2]
[399418653,1766337042503,-2146.85,0.00013821,2]
[399418654,1766337042513,-166.66,0.00013836,2]
[399418655,1766337042522,-250.0,0.00013852,2]
[399418656,1766337042531,-736.0,0.00013878,2]
[399418657,1766337042540,-1267.34,0.00013922,2]
[399418658,1766337042550,-823.0,0.00013931,2]
[399418659,1766337042559,-500.0,0.00013935,2]
[399418660,1766337042569,-3292.0,0.00013952,2]
[399418661,1766337042578,-166.66,0.00013973,2]
[399418662,1766337042587,-2146.85,0.00014095,2]
[399418663,1766337042596,-166.66,0.0001411,2]
[399418664,1766337042605,-628.57848671,0.00014209,2]
[399418665,1766337042615,-166.66,0.00014247,2]
[399418666,1766337042624,-2146.85,0.00014368,2]
[399418667,1766337042634,-1358.60637341,0.00014368,2]
[399418668,1766337042643,-1500.0,0.00014368,2]
[399418669,1766337042652,-1500.0,0.00014368,2]
[399418670,1766337042662,-1097.40388542,0.00014368,2]
[399418671,1766337042671,-1500.0,0.00014368,2]
[399418672,1766337042681,-658.72296276,0.00014368,2]
[399418673,1766337042690,-1500.0,0.00014368,2]
[399418674,1766337042700,-1000.84654228,0.00014368,2]
[399418675,1766337042709,-1500.0,0.00014368,2]
[399418676,1766337042724,-1289.33467407,0.00014368,2]
[399418677,1766337042733,-1500.0,0.00014368,2]
[399418678,1766337042743,-1500.0,0.00014368,2]
[399418679,1766337042752,-1500.0,0.00014368,2]
[399418680,1766337042761,-1500.0,0.00014368,2]
[399418681,1766337042772,-644.26340267,0.00014368,2]
[399418682,1766337042782,-436.70587254,0.00014368,2]
[399418683,1766337042791,-303.77125516,0.00014368,2]
[399418684,1766337042801,-1480.21424336,0.00014368,2]
[399418685,1766337042811,-366.15226393,0.00014368,2]
[399418686,1766337042821,-1500.0,0.00014368,2]
[399418687,1766337042830,-1500.0,0.00014368,2]
[399418688,1766337042839,-1500.0,0.00014368,2]
[399418689,1766337042851,-1500.0,0.00014368,2]
[399418690,1766337042860,-1500.0,0.00014368,2]
[399418691,1766337042870,-1500.0,0.00014368,2]
[399418692,1766337042880,-1500.0,0.00014368,2]
[399418693,1766337042891,-1500.0,0.00014368,2]
[399418694,1766337042901,-1500.0,0.00014368,2]
[399418695,1766337042910,-166.66,0.00014384,2]
[399418696,1766337042919,-151.0,0.00014394,2]
[399418697,1766337042928,-151.0,0.000144,2]
[399418698,1766337042937,-151.0,0.00014418,2]
[399418699,1766337042946,-10000.0,0.0001451,2]
[399418700,1766337042956,-1595.77264532,0.00014543,2]
[399418701,1766337042966,-2146.85,0.00014642,2]
[399418702,1766337042975,-1267.34,0.00014916,2]
[399418703,1766337042984,-2146.85,0.00014916,2]
[399418704,1766337042994,-936.03619538,0.00014916,2]
[399418705,1766337043003,-2000.0,0.00014916,2]
[399418706,1766337043013,-223.24574971,0.00014916,2]
[399418707,1766337043022,-158.38653664,0.00014916,2]
[399418708,1766337043031,-2000.0,0.00014916,2]
[399418709,1766337043040,-1571.82272799,0.00014916,2]
[399418710,1766337043049,-1211.67995912,0.00014916,2]
[399418714,1766337043257,-2000.0,0.00014916,2]
[399418715,1766337043267,-1004.443568,0.00014916,2]
[399418717,1766337043276,-2000.0,0.00014916,2]
[399418718,1766337043287,-1072.75082077,0.00014916,2]
[399418719,1766337043296,-2000.0,0.00014916,2]
[399418720,1766337043306,-2000.0,0.00014916,2]
[399418722,1766337043314,-2000.0,0.00014916,2]
[399418724,1766337043323,-1129.20788422,0.00014916,2]
[399418725,1766337043333,-2087.77987847,0.00014916,2]
[399418727,1766337043343,-503.75804982,0.00014916,2]
[399418730,1766337043353,-2000.0,0.00014916,2]
[399418732,1766337043362,-282.47447469,0.00014983,2]
[399418734,1766337043371,-553.63,0.00015068,2]
[399418735,1766337043381,-500.0,0.00015156,2]
[399418736,1766337043390,-2146.85,0.0001519,2]
[399418737,1766337043399,-1163.53608474,0.0001522,2]
[399418738,1766337043409,-1252.0,0.00015231,2]
[399418739,1766337043418,-9999.99,0.0001531,2]
[399418740,1766337043428,-13312.29,0.0001531,2]
[399418741,1766337043438,-914.0,0.00015317,2]
[399418742,1766337043448,-4609.0,0.00015347,2]
[399418743,1766337043458,-362.0,0.00015425,2]
[399418744,1766337043467,-500.0,0.00015464,2]
[399418745,1766337043477,-500.0,0.00015464,2]
[399418746,1766337043487,-500.0,0.00015464,2]
[399418747,1766337043496,-2146.85,0.00015464,2]
[399418748,1766337043505,-2500.0,0.00015464,2]
[399418749,1766337043516,-2500.0,0.00015464,2]
[399418750,1766337043526,-2500.0,0.00015464,2]
[399418751,1766337043535,-693.10611443,0.00015464,2]
[399418752,1766337043545,-2500.0,0.00015464,2]
[399418753,1766337043555,-2500.0,0.00015464,2]
[399418754,1766337043566,-1014.45362555,0.00015464,2]
[399418755,1766337043577,-2500.0,0.00015464,2]
[399418756,1766337043587,-2146.85,0.00015738,2]
[399418757,1766337043597,-10000.0,0.00015873,2]
[399418758,1766337043607,-162.2682575,0.00015973,2]
[399418759,1766337043617,-500.0,0.00015973,2]
[399418760,1766337043627,-500.0,0.00015973,2]
[399418761,1766337043637,-500.0,0.00015973,2]
[399418762,1766337043648,-500.0,0.00015973,2]
[399418763,1766337043657,-500.0,0.00015973,2]
[399418764,1766337043667,-500.0,0.00015973,2]
[399418765,1766337043676,-160.58296236,0.00015973,2]
[399418766,1766337043686,-555.97636192,0.00015973,2]
[399418767,1766337043695,-333.50168371,0.00015973,2]
[399418768,1766337043705,-500.30670484,0.00015973,2]
[399418770,1766337043714,-500.0,0.00015973,2]
[399418772,1766337043723,-500.0,0.00015973,2]
[399418774,1766337043733,-500.0,0.00015973,2]
[399418776,1766337043742,-500.0,0.00015973,2]
[399418778,1766337043751,-500.0,0.00015973,2]
[399418780,1766337043761,-330.74959628,0.00015973,2]
[399418782,1766337043771,-500.0,0.00015973,2]
[399418784,1766337043781,-500.0,0.00015973,2]
[399418785,1766337043791,-206.6241759,0.00015973,2]
[399418786,1766337043800,-162.38378184,0.00015973,2]
[399418787,1766337043811,-570.29356194,0.00015973,2]
[399418788,1766337043820,-500.0,0.00015973,2]
[399418789,1766337043830,-500.0,0.00015973,2]
[399418790,1766337043839,-500.0,0.00015973,2]
[399418791,1766337043851,-500.0,0.00015973,2]
[399418792,1766337043860,-500.0,0.00015973,2]
[399418793,1766337043870,-500.4654119,0.00015973,2]
[399418794,1766337043879,-518.86476464,0.00015973,2]
[399418795,1766337043888,-500.0,0.00015973,2]
[399418796,1766337043897,-500.0,0.00015973,2]
[399418798,1766337043906,-500.0,0.00015973,2]
[399418800,1766337043916,-500.0,0.00015973,2]
[399418802,1766337043925,-500.0,0.00015973,2]
[399418804,1766337043935,-500.0,0.00015973,2]
[399418806,1766337043944,-500.0,0.00015973,2]
[399418808,1766337043954,-500.0,0.00015973,2]
[399418810,1766337043963,-334.60508476,0.00015973,2]
[399418812,1766337043972,-500.0,0.00015973,2]
[399418814,1766337043981,-500.0,0.00015973,2]
[399418817,1766337043991,-500.0,0.00015973,2]
[399418819,1766337044000,-500.0,0.00015973,2]
[399418820,1766337044009,-156.55034948,0.00015973,2]
[399418822,1766337044019,-500.0,0.00015973,2]
[399418823,1766337044028,-500.0,0.00015973,2]
[399418824,1766337044037,-160.18740865,0.00015973,2]
[399418825,1766337044046,-160.176,0.00015973,2]
[399418826,1766337044056,-160.18818998,0.00015973,2]
[399418827,1766337044067,-160.18477965,0.00015973,2]
[399418828,1766337044077,-160.18741035,0.00015973,2]
[399418829,1766337044086,-160.18740865,0.00015973,2]
[399418830,1766337044096,-500.18172396,0.00015973,2]
[399418831,1766337044106,-500.0,0.00015973,2]
[399418832,1766337044115,-500.0,0.00015973,2]
[399418833,1766337044125,-500.0,0.00015973,2]
[399418834,1766337044135,-551.71631931,0.00015973,2]
[399418835,1766337044144,-483.03971098,0.00015973,2]
[399418836,1766337044153,-500.0,0.00015973,2]
[399418837,1766337044163,-165.56666104,0.00015973,2]
[399418838,1766337044173,-307.28848797,0.00015973,2]
[399418839,1766337044183,-500.0,0.00015973,2]
[399418840,1766337044193,-500.0,0.00015973,2]
[399418841,1766337044202,-500.0,0.00015973,2]
[399418842,1766337044211,-500.67181276,0.00015973,2]
[399418843,1766337044221,-500.0,0.00015973,2]
[399418844,1766337044230,-500.0,0.00015973,2]
[399418845,1766337044239,-164.83274193,0.00015973,2]
[399418846,1766337044249,-500.0,0.00015973,2]
[399418847,1766337044259,-500.0,0.00015973,2]
[399418848,1766337044267,-500.0,0.00015973,2]
[399418849,1766337044277,-500.0,0.00015973,2]
[399418850,1766337044287,-500.0,0.00015973,2]
[399418851,1766337044296,-500.0,0.00015973,2]
[399418852,1766337044306,-509.1899532,0.00015973,2]
[399418853,1766337044316,-639.72398952,0.00015973,2]
[399418854,1766337044326,-509.50050033,0.00015973,2]
[399418855,1766337044335,-160.18740865,0.00015973,2]
[399418856,1766337044347,-160.18648371,0.00015973,2]
[399418857,1766337044356,-160.18740865,0.00015973,2]
[399418858,1766337044366,-160.18741035,0.00015973,2]
[399418859,1766337044375,-160.18741035,0.00015973,2]
[399418860,1766337044384,-160.18546537,0.00015973,2]
[399418861,1766337044395,-160.10991314,0.00015973,2]
[399418862,1766337044404,-500.0,0.00015973,2]
[399418863,1766337044413,-500.0,0.00015973,2]
[399418864,1766337044423,-160.18819168,0.00015973,2]
[399418865,1766337044433,-160.18648397,0.00015973,2]
[399418866,1766337044443,-500.0,0.00015973,2]
[399418867,1766337044452,-150.17482874,0.00015973,2]
[399418868,1766337044461,-500.0,0.00015973,2]
[399418869,1766337044471,-500.0,0.00015973,2]
[399418870,1766337044482,-506.25214638,0.00015973,2]
[399418871,1766337044492,-500.0,0.00015973,2]
[399418872,1766337044502,-500.0,0.00015973,2]
[399418873,1766337044512,-168.59717172,0.00015973,2]
[399418874,1766337044522,-500.0,0.00015973,2]
[399418875,1766337044531,-500.0,0.00015973,2]
[399418876,1766337044541,-1267.34,0.00015998,2]
[399418877,1766337044551,-2146.85,0.00016012,2]
[399418878,1766337044561,-3000.0,0.00016012,2]
[399418879,1766337044571,-1899.83178331,0.00016012,2]
[399418880,1766337044581,-2954.77156402,0.00016012,2]
[399418881,1766337044591,-638.30499273,0.00016012,2]
[399418882,1766337044601,-3000.0,0.00016012,2]
[399418883,1766337044611,-6503.45,0.00016116,2]
[399418884,1766337044621,-2146.85,0.00016286,2]
[399418885,1766337044631,-200.0,0.00016411,2]
[399418886,1766337044643,-908.58411009,0.00016428,2]
[399418887,1766337044654,-500.0,0.00016437,2]
[399418888,1766337044664,-1267.34,0.00016437,2]
[399418889,1766337044674,-500.0,0.00016437,2]
[399418890,1766337044688,-500.0,0.00016437,2]
[399418891,1766337044699,-500.0,0.00016437,2]
[399418892,1766337044710,-925.01559954,0.00016438,2]
[399418893,1766337044720,-925.01559954,0.00016438,2]
[399418894,1766337044733,-925.01559954,0.00016438,2]
[399418895,1766337044744,-925.01559954,0.00016438,2]
[399418896,1766337044755,-925.01559954,0.00016438,2]
[399418897,1766337044767,-925.01559954,0.00016438,2]
[399418898,1766337044778,-925.01559954,0.00016438,2]
[399418899,1766337044787,-925.01559954,0.00016438,2]
[399418900,1766337044798,-925.01559954,0.00016438,2]
[399418901,1766337044807,-925.01559954,0.00016438,2]
[399418902,1766337044817,-925.01559954,0.00016438,2]
[399418903,1766337044826,-925.01559954,0.00016438,2]
[399418904,1766337044836,-925.01559954,0.00016438,2]
[399418905,1766337044847,-925.01559954,0.00016438,2]
[399418906,1766337044855,-925.01559954,0.00016438,2]
[399418907,1766337044864,-925.01559954,0.00016438,2]
[399418908,1766337044874,-925.01559954,0.00016438,2]
[399418909,1766337044883,-925.01559954,0.00016438,2]
[399418910,1766337044892,-925.01559954,0.00016438,2]
[399418911,1766337044903,-925.01559954,0.00016438,2]
[399418912,1766337044912,-925.01559954,0.00016438,2]
[399418913,1766337044922,-925.01559954,0.00016438,2]
[399418914,1766337044933,-925.01559954,0.00016438,2]
[399418915,1766337044942,-925.01559954,0.00016438,2]
[399418916,1766337044952,-925.01559954,0.00016438,2]
[399418917,1766337044962,-925.01559954,0.00016438,2]
[399418918,1766337044971,-925.01559954,0.00016438,2]
[399418919,1766337044981,-925.01559954,0.00016438,2]
[399418920,1766337044991,-925.01559954,0.00016438,2]
[399418921,1766337045000,-925.01559954,0.00016438,2]
[399418922,1766337045010,-925.01559954,0.00016438,2]
[399418923,1766337045019,-925.01559954,0.00016438,2]
[399418924,1766337045029,-925.01559954,0.00016438,2]
[399418925,1766337045038,-925.01559954,0.00016438,2]
[399418926,1766337045048,-925.01559954,0.00016438,2]
[399418927,1766337045057,-925.01559954,0.00016438,2]
[399418928,1766337045066,-925.01559954,0.00016438,2]
[399418929,1766337045075,-925.01559954,0.00016438,2]
[399418930,1766337045085,-925.01559954,0.00016438,2]
[399418931,1766337045094,-925.01559954,0.00016438,2]
[399418932,1766337045106,-925.01559954,0.00016438,2]
[399418933,1766337045117,-925.01559954,0.00016438,2]
[399418934,1766337045128,-925.01559954,0.00016438,2]
[399418935,1766337045138,-925.01559954,0.00016438,2]
[399418936,1766337045149,-925.01559954,0.00016438,2]
[399418937,1766337045160,-925.01559954,0.00016438,2]
[399418938,1766337045171,-925.01559954,0.00016438,2]
[399418939,1766337045181,-925.01559954,0.00016438,2]
[399418940,1766337045191,-925.01559954,0.00016438,2]
[399418941,1766337045201,-925.01559954,0.00016438,2]
[399418942,1766337045211,-925.01559954,0.00016438,2]
[399418943,1766337045220,-925.01559954,0.00016438,2]
[399418944,1766337045230,-925.01559954,0.00016438,2]
[399418945,1766337045240,-925.01559954,0.00016438,2]
[399418946,1766337045250,-925.01559954,0.00016438,2]
[399418947,1766337045260,-925.01559954,0.00016438,2]
[399418948,1766337045270,-925.01559954,0.00016438,2]
[399418949,1766337045280,-925.01559954,0.00016438,2]
[399418950,1766337045289,-925.01559954,0.00016438,2]
[399418951,1766337045299,-925.01559954,0.00016438,2]
[399418952,1766337045309,-925.01559954,0.00016438,2]
[399418953,1766337045319,-925.01559954,0.00016438,2]
[399418954,1766337045329,-4016.33413123,0.00016438,2]
[399418955,1766337045339,-4016.33413123,0.00016438,2]
[399418956,1766337045348,-4016.33413123,0.00016438,2]
[399418957,1766337045358,-4016.33413123,0.00016438,2]
[399418958,1766337045367,-4016.33413123,0.00016438,2]
[399418959,1766337045377,-4016.33413123,0.00016438,2]
[399418960,1766337045387,-4016.33413123,0.00016438,2]
[399418961,1766337045396,-4016.33413123,0.00016438,2]
[399418962,1766337045406,-4016.33413123,0.00016438,2]
[399418963,1766337045415,-4016.33413123,0.00016438,2]
[399418964,1766337045425,-4016.33413123,0.00016438,2]
[399418965,1766337045435,-4016.33413123,0.00016438,2]
[399418966,1766337045445,-4016.33413123,0.00016438,2]
[399418967,1766337045455,-4016.33413123,0.00016438,2]
[399418968,1766337045465,-4016.33413123,0.00016438,2]
[399418969,1766337045475,-4016.33413123,0.00016438,2]
[399418970,1766337045484,-4016.33413123,0.00016438,2]
[399418971,1766337045494,-4016.33413123,0.00016438,2]
[399418972,1766337045504,-4016.33413123,0.00016438,2]
[399418973,1766337045513,-4016.33413123,0.00016438,2]
[399418974,1766337045522,-4016.33413123,0.00016438,2]
[399418975,1766337045532,-4016.33413123,0.00016438,2]
[399418976,1766337045543,-4016.33413123,0.00016438,2]
[399418977,1766337045553,-4016.33413123,0.00016438,2]
[399418978,1766337045563,-4016.33413123,0.00016438,2]
[399418979,1766337045572,-4016.33413123,0.00016438,2]
[399418980,1766337045582,-4016.33413123,0.00016438,2]
[399418981,1766337045592,-4016.33413123,0.00016438,2]
[399418982,1766337045601,-681.56,0.00016438,2]
[399418983,1766337045611,-681.56,0.00016438,2]
[399418984,1766337045620,-681.56,0.00016438,2]
[399418985,1766337045630,-681.56,0.00016438,2]
[399418986,1766337045707,-681.56,0.00016438,2]
[399418987,1766337045717,-681.56,0.00016438,2]
[399418988,1766337045726,-681.56,0.00016438,2]
[399418989,1766337045736,-681.56,0.00016438,2]
[399418990,1766337045745,-681.56,0.00016438,2]
[399418991,1766337045755,-553.63,0.00016438,2]
[399418992,1766337045765,-800.0,0.00016438,2]
[399418993,1766337045777,-1000.0,0.00016521,2]
[399418994,1766337045787,-1000.0,0.00016521,2]
[399418995,1766337045796,-1000.0,0.00016521,2]
[399418996,1766337045806,-500.56420784,0.00016521,2]
[399418997,1766337045816,-1000.0,0.00016521,2]
[399418998,1766337045826,-500.77244015,0.00016521,2]
[399418999,1766337045835,-1000.0,0.00016521,2]
[399419000,1766337045845,-986.87494443,0.00016521,2]
[399419001,1766337045856,-1000.0,0.00016521,2]
[399419002,1766337045866,-1000.0,0.00016521,2]
[399419003,1766337045876,-1000.0,0.00016521,2]
[399419004,1766337045886,-511.36256137,0.00016521,2]
[399419005,1766337045896,-452.23233136,0.00016521,2]
[399419006,1766337045907,-811.84683956,0.00016521,2]
[399419007,1766337045918,-1000.0,0.00016521,2]
[399419008,1766337045930,-1000.0,0.00016521,2]
[399419009,1766337045941,-1000.0,0.00016521,2]
[399419010,1766337045951,-1000.0,0.00016521,2]
[399419011,1766337045963,-979.05040621,0.00016521,2]
[399419012,1766337045973,-1000.0,0.00016521,2]
[399419013,1766337045983,-1000.0,0.00016521,2]
[399419014,1766337045992,-1000.0,0.00016521,2]
[399419015,1766337046001,-1000.0,0.00016521,2]
[399419016,1766337046011,-1000.0,0.00016521,2]
[399419017,1766337046021,-1000.0,0.00016521,2]
[399419018,1766337046029,-168.18676432,0.00016521,2]
[399419019,1766337046039,-500.65341776,0.00016521,2]
[399419020,1766337046049,-590.29428357,0.00016521,2]
[399419021,1766337046058,-500.47443561,0.00016521,2]
[399419022,1766337046068,-500.52093975,0.00016521,2]
[399419023,1766337046077,-1000.0,0.00016521,2]
[399419025,1766337046086,-501.99535785,0.00016521,2]
[399419027,1766337046096,-1000.0,0.00016521,2]
[399419028,1766337046105,-1001.48988543,0.00016521,2]
[399419030,1766337046114,-506.42109494,0.00016521,2]
[399419032,1766337046123,-1000.0,0.00016521,2]
[399419033,1766337046133,-1000.0,0.00016521,2]
[399419034,1766337046142,-1000.0,0.00016521,2]
[399419035,1766337046151,-1000.0,0.00016521,2]
[399419036,1766337046160,-1000.0,0.00016521,2]
[399419037,1766337046170,-1000.0,0.00016521,2]
[399419038,1766337046179,-1000.0,0.00016521,2]
[399419039,1766337046188,-1000.0,0.00016521,2]
[399419040,1766337046198,-500.51801303,0.00016521,2]
[399419041,1766337046208,-378.15038662,0.00016521,2]
[399419042,1766337046218,-1000.0,0.00016521,2]
[399419043,1766337046227,-669.31135743,0.00016521,2]
[399419044,1766337046237,-1000.0,0.00016521,2]
[399419045,1766337046246,-177.38138354,0.00016521,2]
[399419046,1766337046257,-1000.0,0.00016521,2]
[399419047,1766337046267,-500.67170266,0.00016521,2]
[399419048,1766337046276,-1000.0,0.00016521,2]
[399419049,1766337046287,-1001.73216536,0.00016521,2]
[399419050,1766337046297,-1000.0,0.00016521,2]
[399419051,1766337046307,-576.10062402,0.00016521,2]
[399419053,1766337046316,-2146.85,0.0001656,2]
[399419055,1766337046327,-3500.0,0.0001656,2]
[399419057,1766337046336,-3500.0,0.0001656,2]
[399419059,1766337046346,-2129.0,0.00016729,2]
[399419061,1766337046356,-2146.85,0.00016834,2]
[399419063,1766337046365,-37166.06809118,0.00016848,2]
[399419065,1766337046375,-681.56,0.00016881,2]
[399419067,1766337046386,-6453.0,0.00016882,2]
[399419069,1766337046395,-150.0,0.00016973,2]
[399419071,1766337046404,-150.32225297,0.00016973,2]
[399419073,1766337046414,-162738.22,0.00016986,2]
[399419075,1766337046423,-500.0,0.00016998,2]
[399419077,1766337046434,-500.0,0.00016999,2]
[399419079,1766337046443,-500.0,0.00016999,2]
[399419081,1766337046454,-500.0,0.00016999,2]
[399419083,1766337046464,-500.0,0.00016999,2]
[399419085,1766337046474,-500.0,0.00016999,2]
[399419087,1766337046483,-500.0,0.00016999,2]
[399419089,1766337046492,-500.0,0.00016999,2]
[399419091,1766337046502,-500.0,0.00016999,2]
[399419093,1766337046512,-500.0,0.00016999,2]
[399419095,1766337046521,-406.51,0.00016999,2]
[399419097,1766337046530,-1267.34,0.00016999,2]
[399419099,1766337046539,-1267.34,0.00016999,2]
[399419101,1766337046548,-1267.34,0.00016999,2]
[399419103,1766337046558,-1267.34,0.00016999,2]
[399419105,1766337046568,-1267.4056166,0.00016999,2]
[399419107,1766337046578,-250.0,0.00017,2]
[399419109,1766337046588,-248.8938967,0.00017068,2]
[399419110,1766337046597,-1002.96949263,0.00017068,2]
[399419111,1766337046606,-1002.52786195,0.00017068,2]
[399419112,1766337046617,-1618.33910672,0.00017068,2]
[399419113,1766337046626,-1506.6907831,0.00017068,2]
[399419114,1766337046635,-517.55500559,0.00017068,2]
[399419115,1766337046647,-1500.0,0.00017068,2]
[399419116,1766337046658,-849.22640037,0.00017068,2]
[399419117,1766337046668,-1500.0,0.00017068,2]
[399419118,1766337046678,-1500.0,0.00017068,2]
[399419119,1766337046688,-226.54246888,0.00017068,2]
[399419120,1766337046698,-310.71387342,0.00017068,2]
[399419121,1766337046708,-1503.26967144,0.00017068,2]
[399419122,1766337046719,-1500.0,0.00017068,2]
[399419123,1766337046730,-1500.0,0.00017068,2]
[399419124,1766337046740,-1500.0,0.00017068,2]
[399419125,1766337046750,-1502.2323831,0.00017068,2]
[399419126,1766337046760,-1500.0,0.00017068,2]
[399419127,1766337046769,-1556.72332682,0.00017068,2]
[399419128,1766337046783,-1500.0,0.00017068,2]
[399419129,1766337046792,-1500.0,0.00017068,2]
[399419130,1766337046802,-1500.0,0.00017068,2]
[399419131,1766337046813,-1157.70110556,0.00017068,2]
[399419132,1766337046823,-1500.0,0.00017068,2]
[399419133,1766337046832,-397.75313595,0.00017068,2]
[399419134,1766337046842,-1135.83054763,0.00017068,2]
[399419135,1766337046851,-1500.0,0.00017068,2]
[399419136,1766337046860,-1500.0,0.00017068,2]
[399419137,1766337046870,-1502.24967112,0.00017068,2]
[399419138,1766337046879,-1500.0,0.00017068,2]
[399419139,1766337046889,-1500.0,0.00017068,2]
[399419141,1766337046899,-1500.0,0.00017068,2]
[399419142,1766337046908,-1500.0,0.00017068,2]
[399419143,1766337046917,-2146.85,0.00017108,2]
[399419144,1766337046928,-4000.0,0.00017108,2]
[399419145,1766337046937,-4000.0,0.00017108,2]
[399419146,1766337046946,-2146.85,0.00017382,2]
[399419148,1766337046955,-219.80510971,0.00017521,2]
[399419150,1766337046965,-1605.54250255,0.00017534,2]
[399419152,1766337046974,-681.56,0.00017616,2]
[399419154,1766337046984,-2000.0,0.00017616,2]
[399419156,1766337046993,-1000.0,0.00017616,2]
[399419158,1766337047002,-998.45616153,0.00017616,2]
[399419160,1766337047012,-2020.61605081,0.00017616,2]
[399419161,1766337047021,-2000.0,0.00017616,2]
[399419163,1766337047031,-2000.0,0.00017616,2]
[399419165,1766337047041,-2003.80602504,0.00017616,2]
[399419167,1766337047051,-2000.0,0.00017616,2]
[399419169,1766337047062,-2000.0,0.00017616,2]
[399419171,1766337047072,-1364.55562986,0.00017616,2]
[399419173,1766337047082,-2000.0,0.00017616,2]
[399419175,1766337047091,-2000.0,0.00017616,2]
[399419177,1766337047100,-2000.0,0.00017616,2]
[399419178,1766337047109,-209.50912244,0.00017616,2]
[399419179,1766337047119,-2000.0,0.00017616,2]
[399419180,1766337047128,-2000.0,0.00017616,2]
[399419181,1766337047138,-2000.0,0.00017616,2]
[399419182,1766337047147,-2146.85,0.00017656,2]
[399419183,1766337047156,-4500.0,0.00017656,2]